bitfinex-derivatives/quotes_SOLF0:USTF0_20260314
["timestamp","ask_amount","ask_price","bid_price","bid_amount"]
[1773492962722,9.47722918,87.039,86.98,3.11729843]
[1773492963511,9.47711792,87.036,86.983,10.345]
[1773492964322,9.47711792,87.036,86.99,3.11729843]
[1773492966927,9.46054405,87.034,86.983,10.345]
[1773492967727,36.18,87.07,86.98,39.29729843]
[1773492967728,9.46054405,87.047,86.99,3.11729843]
[1773492967924,9.46054405,87.047,87.0,3.11729843]
[1773492968324,12.57784756,87.06,87.001,10.343]
[1773492968629,9.46054913,87.06,87.01,3.11729843]
[1773492969621,9.468957,87.059,87.011,10.341]
[1773492978845,9.468957,87.059,87.018,10.341]
[1773492982455,9.44737737,87.057,87.012,10.341]
[1773492982655,9.44737737,87.049,86.99,3.11729843]
[1773492982954,9.44737737,87.049,86.991,36.18]
[1773492983658,9.44737737,87.049,86.997,10.343]
[1773492986759,9.44058422,87.045,86.997,10.343]
[1773492996862,9.38014511,87.039,86.997,10.343]
[1773493032191,9.38014511,87.039,86.989,10.344]
[1773493032389,9.38014511,87.039,86.989,46.524]
[1773493033198,9.39497387,87.037,86.989,46.524]
[1773493033891,9.39902219,87.035,86.989,46.524]
[1773493034089,9.39902219,87.033,86.989,46.524]
[1773493034295,9.39902219,87.031,86.989,46.524]
[1773493044604,9.40342695,87.03,86.989,46.524]
[1773493056221,10.34,87.025,86.979,36.18]
[1773493056716,19.77186188,87.025,86.979,36.18]
[1773493057220,9.43347485,87.024,86.979,36.18]
[1773493060517,9.43347485,87.024,86.98,3.11971984]
[1773493063820,9.43347485,87.024,86.979,36.18]
[1773493065421,10.34,87.025,86.979,36.18]
[1773493066325,10.34,87.025,86.98,3.11971984]
[1773493067426,19.81428834,87.025,86.98,3.11971984]
[1773493069329,9.47812899,87.024,86.98,3.11971984]
[1773493076736,9.49517069,87.039,86.98,3.11971984]
[1773493076933,9.49529805,87.037,86.98,3.11971984]
[1773493077135,9.49529805,87.035,86.98,3.11971984]
[1773493077435,9.49529805,87.033,86.98,3.11971984]
[1773493077638,9.49529805,87.031,86.988,10.344]
[1773493077934,9.22926076,87.03,86.988,10.344]
[1773493078136,9.47071184,87.028,86.988,10.344]
[1773493078435,9.47071184,87.026,86.988,10.344]
[1773493085744,9.47774568,87.024,86.988,10.344]
[1773493090848,9.48493569,87.009,86.932,28.5899988]
[1773493091055,9.48493569,86.989,86.933,36.18]
[1773493091249,9.48493569,86.989,86.934,36.18]
[1773493091654,9.48493569,86.989,86.936,10.35]
[1773493092351,9.48493569,86.989,86.94,3.11971984]
[1773493092652,9.48493569,86.989,86.934,36.18]
[1773493092853,9.48493569,86.989,86.94,3.11971984]
[1773493093542,9.48493569,86.989,86.951,10.349]
[1773493093745,9.48493569,86.989,86.94,3.11971984]
[1773493095653,9.48493569,86.989,86.947,10.349]
[1773493114864,9.48493569,86.989,86.955,10.348]
[1773493126368,9.4986667,87.002,86.96,3.12205246]
[1773493127667,9.4986667,87.002,86.972,10.346]
[1773493134076,9.55351196,87.024,86.98,10.345]
[1773493134280,10.339,87.034,86.98,10.345]
[1773493134281,9.55351196,87.022,86.98,10.345]
[1773493134485,9.55351196,87.02,86.98,10.345]
[1773493137783,9.55361494,87.03,86.98,3.12205246]
[1773493138780,9.55361494,87.03,86.973,36.18]
[1773493139687,9.55361494,87.03,86.985,10.345]
[1773493142286,9.53977303,87.029,86.985,10.345]
[1773493147496,9.53977303,87.029,86.994,10.343]
[1773493156603,9.54535623,87.049,87.002,10.342]
[1773493157106,9.55478468,87.047,87.002,10.342]
[1773493163212,9.55478468,87.047,87.01,10.341]
[1773493164011,9.55478468,87.047,87.0,13.46505246]
[1773493174410,9.55478468,87.047,87.007,10.342]
[1773493184918,9.59502134,87.066,87.015,10.341]
[1773493185121,9.59502134,87.064,87.015,10.341]
[1773493185315,9.59502134,87.059,87.015,10.341]
[1773493189327,9.58453968,87.057,87.007,10.342]
[1773493191831,9.58453968,87.057,87.002,10.342]
[1773493192126,9.58453968,87.057,87.01,10.342]
[1773493193229,9.58453968,87.057,87.018,10.341]
[1773493195925,36.18,87.083,86.985,36.18]
[1773493196126,9.58647082,87.081,87.03,3.11778386]
[1773493196318,9.58647082,87.079,87.03,3.11778386]
[1773493196627,9.58647082,87.079,87.042,10.338]
[1773493196818,9.58647082,87.079,87.03,3.11778386]
[1773493198530,9.58647082,87.079,87.032,10.339]
[1773493199531,9.58647082,87.079,87.04,3.11778386]
[1773493201029,9.58647082,87.079,87.022,10.34]
[1773493201432,3.11778386,87.08,87.01,36.18]
[1773493201433,9.36469464,87.059,87.01,3.11778386]
[1773493201626,9.36469464,87.059,87.0,3.11778386]
[1773493201832,9.36469464,87.059,87.01,3.11778386]
[1773493202335,9.36469464,87.059,87.021,10.34]
[1773493220250,9.36469464,87.059,87.012,10.341]
[1773493220556,9.36704025,87.049,86.99,3.11778386]
[1773493221548,9.36704025,87.049,87.008,10.342]
[1773493230753,9.31278582,87.029,86.97,3.11778386]
[1773493231253,9.31278582,87.029,86.988,10.344]
[1773493233754,9.29895445,87.049,86.996,10.343]
[1773493238258,9.29216629,87.039,86.996,10.343]
[1773493239662,9.2954667,87.029,86.996,10.343]
[1773493241766,9.2954667,87.029,86.987,10.344]
[1773493250770,9.2954667,87.029,86.99,3.11969009]
[1773493251569,9.2954667,87.029,86.994,10.343]
[1773493269395,9.29627299,87.044,86.994,10.343]
[1773493269593,9.29627299,87.042,86.994,10.343]
[1773493270296,9.29627299,87.042,87.001,10.343]
[1773493275504,9.29627299,87.042,87.009,10.342]
[1773493277607,9.29627299,87.042,86.99,3.11969009]
[1773493278606,9.29627299,87.042,86.993,10.344]
[1773493281209,9.29627299,87.042,87.001,10.343]
[1773493287311,9.29627299,87.042,87.009,10.342]
[1773493291609,36.18,87.067,86.972,36.18]
[1773493291610,3.11969009,87.03,86.972,36.18]
[1773493291907,9.33366502,87.029,86.972,36.18]
[1773493292114,3.11969009,87.02,86.985,10.345]
[1773493292414,9.34657465,87.019,86.985,10.345]
[1773493298217,9.34657465,87.019,86.977,10.345]
[1773493310518,9.34657465,87.019,86.972,36.18]
[1773493310929,9.34657465,87.019,86.96,3.12027457]
[1773493311128,9.34657465,87.019,86.97,3.12027457]
[1773493311625,9.34657465,87.019,86.973,10.346]
[1773493314424,10.34,87.028,86.965,36.18]
[1773493314425,9.36455318,87.043,86.99,3.12027457]
[1773493314627,9.36455318,87.043,87.0,3.12027457]
[1773493314827,9.36455318,87.043,86.99,3.12027457]
[1773493315528,9.36455318,87.043,87.001,10.343]
[1773493320531,9.33897033,87.039,86.993,10.344]
[1773493322632,9.3541574,87.029,86.993,10.344]
[1773493326636,9.3541574,87.029,87.0,10.343]
[1773493326934,9.32620994,87.049,87.0,10.343]
[1773493327134,9.32620994,87.047,87.0,10.343]
[1773493327327,9.32620994,87.045,87.0,10.343]
[1773493328239,9.32502412,87.043,87.0,10.343]
[1773493330340,9.20032245,87.042,87.0,10.343]
[1773493330534,9.32502412,87.043,87.0,10.343]
[1773493330731,9.20032245,87.042,87.0,10.343]
[1773493330941,9.32502412,87.043,87.0,10.343]
[1773493331240,9.33765206,87.041,87.0,10.343]
[1773493332538,3.12027457,87.06,87.008,10.342]
[1773493332743,9.20091003,87.059,87.01,3.12027457]
[1773493333045,9.33753605,87.061,87.01,3.12027457]
[1773493333541,9.33753605,87.061,87.02,10.34]
[1773493334745,9.31713143,87.071,87.028,10.339]
[1773493344443,9.38806948,87.084,87.035,10.339]
[1773493345042,9.38806948,87.084,87.04,3.12027457]
[1773493348652,9.38806948,87.084,87.042,10.338]
[1773493351253,9.38806948,87.084,87.05,3.12027457]
[1773493351557,9.38661214,87.102,87.05,13.45727457]
[1773493352254,9.38657155,87.1,87.05,13.45727457]
[1773493352650,9.38657155,87.1,87.059,10.336]
[1773493354057,9.38657155,87.1,87.049,10.337]
[1773493356359,9.38411669,87.099,87.049,10.337]
[1773493361467,9.3988364,87.096,87.04,3.12027457]
[1773493362661,9.3988364,87.096,87.042,10.338]
[1773493363466,9.3988364,87.096,87.05,10.337]
[1773493363765,9.3988364,87.096,87.05,13.45727457]
[1773493367568,9.3988364,87.096,87.05,13.451421]
[1773493370863,9.4024438,87.094,87.037,10.338]
[1773493371064,9.4024438,87.094,87.04,3.114421]
[1773493372779,9.4024438,87.094,87.044,10.337]
[1773493375375,9.4024438,87.094,87.052,10.337]
[1773493381482,9.4024438,87.094,87.06,10.336]
[1773493383083,10.33,87.11,87.06,10.336]
[1773493383287,36.16,87.121,87.018,20.682]
[1773493383288,9.40537054,87.119,87.07,3.114421]
[1773493384589,9.40537054,87.119,87.073,10.334]
[1773493385491,19.73206541,87.129,87.08,3.114421]
[1773493385792,9.40406541,87.129,87.09,3.114421]
[1773493386589,9.40406541,87.129,87.08,3.114421]
[1773493386793,9.40616003,87.135,87.08,3.114421]
[1773493387488,9.40616003,87.135,87.085,10.333]
[1773493390696,3.114421,87.11,87.05,3.114421]
[1773493391002,9.41421358,87.109,87.05,3.114421]
[1773493391201,36.14,87.149,87.042,36.14]
[1773493391202,9.41421358,87.099,87.042,36.14]
[1773493391497,9.41421358,87.099,87.058,10.336]
[1773493412715,9.41421358,87.099,87.065,10.335]
[1773493413418,9.41421358,87.099,87.05,3.114421]
[1773493414615,9.41421358,87.099,87.065,10.335]
[1773493438137,9.43273135,87.089,87.044,10.338]
[1773493438330,9.43273135,87.087,87.044,10.338]
[1773493441635,9.43273135,87.087,87.034,10.339]
[1773493441836,9.42757485,87.085,87.034,10.339]
[1773493442035,9.1908121,87.084,87.034,10.339]
[1773493442236,9.42753485,87.083,87.034,10.339]
[1773493446940,9.42753485,87.083,87.026,36.14]
[1773493446941,9.42817899,87.079,87.026,36.14]
[1773493447130,9.42812802,87.059,87.0,3.11421853]
[1773493447335,9.42812802,87.059,87.001,36.16]
[1773493447741,3.11421853,87.05,87.001,36.16]
[1773493447931,9.42812802,87.049,87.001,36.16]
[1773493448537,9.42812802,87.049,87.006,10.342]
[1773493461349,9.42812802,87.049,87.014,10.341]
[1773493471956,9.45284488,87.039,87.001,36.16]
[1773493485671,9.42590858,87.059,87.001,36.16]
[1773493486574,9.42590858,87.059,87.01,10.341]
[1773493488972,9.42590858,87.059,87.01,13.45521853]
[1773493489677,9.42590858,87.059,87.01,10.341]
[1773493490179,9.20070086,87.058,87.01,10.341]
[1773493490380,9.50839222,87.056,87.01,10.341]
[1773493490582,9.50839222,87.054,87.01,10.341]
[1773493490782,9.20070086,87.053,87.01,10.341]
[1773493490983,9.20070086,87.052,87.01,10.341]
[1773493491183,9.20725763,87.051,87.01,10.341]
[1773493491382,9.20725763,87.05,87.01,10.341]
[1773493491584,9.20725763,87.049,87.01,10.341]
[1773493491780,9.50839222,87.054,87.01,10.341]
[1773493491981,9.20725713,87.053,87.01,10.341]
[1773493492181,9.20725713,87.052,87.01,10.341]
[1773493492380,9.20725713,87.051,87.01,10.341]
[1773493492679,9.20725713,87.05,87.01,10.341]
[1773493492877,9.20725713,87.049,87.01,10.341]
[1773493493077,9.50839222,87.054,87.01,10.341]
[1773493493274,9.20853054,87.053,87.01,10.341]
[1773493493573,9.20853054,87.052,87.01,10.341]
[1773493493773,9.20853054,87.051,87.01,10.341]
[1773493493985,9.20853054,87.05,87.01,10.341]
[1773493494185,9.20853054,87.049,87.01,10.341]
[1773493494379,9.45553945,87.053,87.01,10.341]
[1773493494675,9.20882015,87.052,87.01,10.341]
[1773493495284,9.45553945,87.053,87.01,10.341]
[1773493495784,9.45553945,87.053,87.001,46.503]
[1773493496279,3.11756979,87.06,87.001,36.16]
[1773493496484,9.46872814,87.079,87.02,3.11756979]
[1773493496682,9.46872814,87.079,87.03,3.11756979]
[1773493497087,9.46872814,87.079,87.032,10.339]
[1773493497381,9.46872814,87.079,87.025,36.18]
[1773493497888,9.46872814,87.079,87.03,3.11756979]
[1773493499383,9.53235666,87.089,87.031,10.339]
[1773493499686,9.53235666,87.089,87.04,3.11756979]
[1773493500386,9.53235666,87.089,87.05,3.11756979]
[1773493501785,9.53540226,87.088,87.041,36.18]
[1773493501985,9.53567836,87.079,87.041,36.18]
[1773493502185,9.53567836,87.079,87.02,3.11756979]
[1773493502387,9.53567836,87.069,87.018,36.16]
[1773493502586,9.53567836,87.059,87.018,36.16]
[1773493502981,9.5515571,87.056,87.018,36.16]
[1773493504590,9.55503026,87.054,87.018,36.16]
[1773493506289,9.55503026,87.054,87.0,3.11756979]
[1773493506488,10.337,87.052,87.0,3.11756979]
[1773493506693,9.56338203,87.051,87.0,3.11756979]
[1773493507995,9.56338203,87.051,87.001,10.343]
[1773493508195,9.56338203,87.051,87.01,3.11756979]
[1773493508397,9.56338203,87.051,87.001,10.343]
[1773493527411,9.62923893,87.046,87.001,10.343]
[1773493533812,9.63284023,87.029,86.97,3.11756979]
[1773493534117,9.63284023,87.029,86.971,36.18]
[1773493534815,9.63284023,87.029,86.98,3.11756979]
[1773493535616,9.63284023,87.029,86.982,10.345]
[1773493538213,9.63284023,87.029,86.983,36.18]
[1773493543520,9.63284023,87.029,86.984,10.345]
[1773493561733,9.63284023,87.029,86.995,10.343]
[1773493567938,9.63284023,87.029,86.95,62.0]
[1773493568242,9.61631057,87.009,86.965,36.18]
[1773493568446,9.61631057,87.009,86.961,10.347]
[1773493577848,9.61631057,87.009,86.96,39.29942893]
[1773493580646,9.61631057,87.009,86.965,10.347]
[1773493584150,9.61631057,87.009,86.96,39.29942893]
[1773493584151,9.53545167,87.022,86.98,3.11942893]
[1773493591157,10.338,87.042,86.99,3.11942893]
[1773493591461,10.338,87.042,86.933,28.50989484]
[1773493591462,9.5485363,87.041,87.01,3.11942893]
[1773493592862,9.52321334,87.087,87.03,3.11942893]
[1773493593066,9.52321334,87.087,87.05,3.11942893]
[1773493600372,9.52321334,87.087,87.06,3.11942893]
[1773493600566,9.52321334,87.087,87.05,3.11942893]
[1773493604773,9.52321334,87.087,87.04,3.11942893]
[1773493605370,9.52321334,87.087,87.039,36.16]
[1773493616779,10.333,87.085,87.039,36.16]
[1773493616987,9.66828202,87.084,87.039,36.16]
[1773493620085,10.333,87.083,87.039,36.16]
[1773493620289,9.65779575,87.082,87.039,36.16]
[1773493622886,10.333,87.081,87.039,36.16]
[1773493623089,9.6580256,87.08,87.039,36.16]
[1773493623284,9.6580256,87.078,86.99,62.0]
[1773493623492,9.6580256,87.069,87.0,3.11594834]
[1773493623683,9.6580256,87.059,87.0,39.27594834]
[1773493624691,9.6580256,87.059,87.005,10.342]
[1773493626691,9.68073277,87.057,87.005,10.342]
[1773493626989,9.68073277,87.049,87.005,10.342]
[1773493660923,9.68073277,87.049,87.004,36.16]
[1773493662420,9.68073277,87.049,87.004,46.502]
[1773493666718,10.337,87.047,87.004,36.16]
[1773493666922,9.61558289,87.039,86.996,10.343]
[1773493670225,9.60679585,87.051,87.0,3.11896665]
[1773493670427,9.169759,87.05,87.0,3.11896665]
[1773493670623,9.60679585,87.048,87.0,3.11896665]
[1773493670829,9.169759,87.047,87.0,3.11896665]
[1773493671033,9.60679585,87.045,87.0,3.11896665]
[1773493678536,9.60679585,87.045,87.008,10.342]
[1773493777414,9.60679585,87.045,86.974,28.50640499]
[1773493777618,10.337,87.052,86.98,3.1179117]
[1773493777619,9.67171298,87.039,86.98,3.1179117]
[1773493777818,9.67171298,87.037,86.974,36.18]
[1773493778017,9.67171298,87.035,86.974,36.18]
[1773493778618,9.67171298,87.035,86.991,10.344]
[1773493779615,9.55863914,87.029,86.991,10.344]
[1773493792532,9.55863914,87.029,86.998,10.343]
[1773493796236,9.56184347,87.063,86.974,36.18]
[1773493796534,9.56184347,87.063,87.02,3.11937255]
[1773493797636,9.56184347,87.063,87.01,3.11937255]
[1773493798526,9.56184347,87.063,87.017,10.341]
[1773493798731,9.56184347,87.063,87.01,3.11937255]
[1773493799428,9.56184347,87.063,86.974,36.18]
[1773493799429,9.51369545,87.059,87.0,3.11937255]
[1773493800236,3.11937255,87.04,86.985,10.345]
[1773493800536,9.51584049,87.039,86.985,10.345]
[1773493804632,9.51584049,87.039,86.993,10.344]
[1773493843152,9.15788729,87.038,86.993,10.344]
[1773493843355,9.51584049,87.039,86.993,10.344]
[1773493843557,9.49901226,87.037,86.993,10.344]
[1773493844163,9.16832177,87.036,86.993,10.344]
[1773493844358,9.49898769,87.034,86.993,10.344]
[1773493863582,9.1689076,87.033,86.993,10.344]
[1773493863782,9.49898769,87.034,86.993,10.344]
[1773493863982,9.1689076,87.033,86.993,10.344]
[1773493864184,9.49898769,87.034,86.993,10.344]
[1773493868590,9.20090554,87.033,86.993,10.344]
[1773493868788,9.49898769,87.034,86.993,10.344]
[1773493868983,9.46506668,87.032,86.993,10.344]
[1773493873685,9.46506668,87.032,87.0,10.343]
[1773493875184,9.20074596,87.031,86.992,10.344]
[1773493875391,9.45838523,87.029,86.968,36.18]
[1773493875687,10.337,87.046,86.968,36.18]
[1773493875688,9.45838523,87.027,86.968,36.18]
[1773493875886,3.11902202,87.04,86.976,10.346]
[1773493875887,9.45838523,87.025,86.976,10.346]
[1773493876084,9.20074596,87.024,86.976,10.346]
[1773493876290,9.46069886,87.022,86.976,10.346]
[1773493876490,9.20074596,87.021,86.976,10.346]
[1773493876688,9.46069886,87.02,86.976,10.346]
[1773493889396,9.46534361,87.049,87.0,3.11902202]
[1773493889602,9.46534361,87.047,87.0,3.11902202]
[1773493893805,9.46534361,87.047,86.997,10.343]
[1773493900302,9.45164119,87.039,86.997,10.343]
[1773493900607,9.45164119,87.039,87.005,10.342]
[1773493986869,9.42942323,87.029,86.96,3.11813554]
[1773493987071,9.42942323,87.019,86.96,39.29813554]
[1773493988274,9.42942323,87.019,86.97,3.11813554]
[1773493988675,9.42942323,87.019,86.979,10.345]
[1773494000472,9.42942323,87.019,86.986,10.344]
[1773494000671,9.43111708,87.046,86.99,3.11813554]
[1773494001678,9.43111708,87.046,86.992,10.344]
[1773494006390,9.4287115,87.039,86.992,10.344]
[1773494018295,9.43677763,87.019,86.96,3.11813554]
[1773494019603,9.43677763,87.019,86.969,10.346]
[1773494024114,9.43889783,86.999,86.96,10.347]
[1773494026008,9.43583303,87.033,86.97,3.11813554]
[1773494026315,9.44394051,87.031,86.98,3.11813554]
[1773494026515,9.44394051,87.031,86.992,10.344]
[1773494028213,9.47031577,87.049,86.992,10.344]
[1773494028515,9.47031577,87.047,87.0,13.46113554]
[1773494028711,9.2344761,87.046,87.0,13.46113554]
[1773494028912,9.47031577,87.045,87.0,13.46113554]
[1773494034619,9.47031577,87.045,87.007,10.342]
[1773494051525,9.47031577,87.045,87.017,10.341]
[1773494052135,9.50068003,87.069,87.017,10.341]
[1773494052431,3.11802412,87.07,87.017,10.341]
[1773494052432,9.50068003,87.067,87.017,10.341]
[1773494052630,9.50068003,87.065,87.017,10.341]
[1773494052832,9.50068003,87.063,87.017,10.341]
[1773494053133,9.50068003,87.061,87.017,10.341]
[1773494055938,9.50076277,87.049,86.979,36.18]
[1773494056137,9.50076277,87.049,86.99,3.11802412]
[1773494057638,9.50076277,87.049,86.999,10.343]
[1773494062746,9.50076277,87.049,87.006,10.342]
[1773494064847,21.47363643,87.099,86.979,36.18]
[1773494064848,9.46569285,87.067,87.02,3.11802412]
[1773494066651,9.46569285,87.067,87.029,10.339]
[1773494082458,9.4342621,87.096,87.0,36.18]
[1773494082665,9.4342621,87.094,87.04,3.11802412]
[1773494082860,9.4342621,87.092,87.04,3.11802412]
[1773494083068,9.4342621,87.089,87.034,10.339]
[1773494086658,9.4342621,87.089,87.04,3.11802412]
[1773494088567,9.4342621,87.089,87.051,10.337]
[1773494088864,9.4342621,87.089,87.05,3.11802412]
[1773494091665,9.4342621,87.089,87.03,3.11802412]
[1773494092572,9.41525023,87.077,87.03,3.11802412]
[1773494095670,19.74649851,87.101,87.048,10.337]
[1773494095870,9.41549851,87.1,87.05,3.11802412]
[1773494096369,9.4074305,87.097,87.04,3.11802412]
[1773494096676,9.4074305,87.089,87.002,36.16]
[1773494096975,9.4074305,87.089,87.03,3.11802412]
[1773494097569,9.39770449,87.081,87.03,3.11802412]
[1773494097769,9.39770449,87.091,87.004,36.16]
[1773494097964,9.39770449,87.091,87.04,3.11802412]
[1773494099272,9.39770449,87.091,87.03,3.11802412]
[1773494099674,9.42247536,87.089,87.037,10.338]
[1773494099874,9.42247536,87.089,87.04,3.11802412]
[1773494100572,10.332,87.088,87.03,3.11802412]
[1773494100776,9.42268142,87.087,87.03,3.11802412]
[1773494101575,9.42268142,87.087,87.034,10.339]
[1773494101772,9.42268142,87.087,87.04,3.11548766]
[1773494101977,9.42268142,87.087,87.01,36.16]
[1773494101978,9.42268142,87.087,87.05,3.11548766]
[1773494102274,9.42268745,87.097,87.05,3.11548766]
[1773494102475,9.42268745,87.097,87.055,10.336]
[1773494122583,9.42268745,87.097,87.062,10.335]
[1773494125691,3.11548766,87.11,87.062,10.335]
[1773494125892,9.46114512,87.109,87.062,10.335]
[1773494127991,9.46114512,87.109,87.069,10.334]
[1773494128994,9.48234621,87.12,87.033,55.148]
[1773494129192,9.48235991,87.145,87.08,3.11548766]
[1773494129383,9.48235991,87.143,87.09,3.11548766]
[1773494129586,9.16940362,87.142,87.09,3.11548766]
[1773494129794,9.48235991,87.14,87.09,3.11548766]
[1773494129994,18.65176353,87.139,87.09,3.11548766]
[1773494130296,9.48235991,87.139,87.097,10.331]
[1773494130590,9.48235991,87.139,87.1,3.11548766]
[1773494130786,9.50437473,87.149,87.093,10.332]
[1773494131095,9.50437473,87.139,87.08,3.11548766]
[1773494131892,3.11548766,87.13,87.08,3.11548766]
[1773494132093,9.50436346,87.129,87.08,3.11548766]
[1773494132392,9.50436346,87.129,87.05,62.0]
[1773494132393,9.50436346,87.129,87.07,3.11548766]
[1773494132592,9.50436346,87.129,87.082,10.333]
[1773494134991,9.50436346,87.129,87.09,10.332]
[1773494136296,9.50436346,87.129,87.098,10.331]
[1773494137391,9.50436346,87.129,87.09,3.11548766]
[1773494137392,9.50436346,87.129,87.087,10.332]
[1773494147403,9.50436346,87.129,87.095,10.331]
[1773494148105,9.50436346,87.129,87.09,3.11548766]
[1773494148106,9.43425514,87.149,87.102,10.331]
[1773494148401,9.43425514,87.149,87.09,3.11548766]
[1773494149603,9.43425514,87.149,87.1,10.331]
[1773494152810,9.43425514,87.149,87.108,10.33]
[1773494157203,9.43425514,87.149,87.116,10.329]
[1773494161116,9.4298455,87.139,87.107,10.33]
[1773494165514,9.4298455,87.139,87.096,10.331]
[1773494165713,9.42348107,87.129,87.096,10.331]
[1773494167219,9.43017029,87.139,87.104,10.33]
[1773494168623,9.43017029,87.139,87.086,36.14]
[1773494168624,9.42805486,87.149,87.112,10.329]
[1773494168819,9.42805486,87.169,87.11,3.11205327]
[1773494169027,9.42805486,87.167,87.11,3.11205327]
[1773494169519,9.43346228,87.159,87.1,3.11205327]
[1773494170521,9.43346228,87.159,87.11,10.33]
[1773494171026,9.43742977,87.149,87.11,10.33]
[1773494190841,9.43742977,87.149,87.11,13.44205327]
[1773494191740,9.43742977,87.149,87.11,10.33]
[1773494193644,9.43742977,87.149,87.11,13.44205327]
[1773494199451,9.43742977,87.149,87.11,10.33]
[1773494199653,9.43742977,87.149,87.101,10.331]
[1773494230372,9.43742977,87.149,87.109,10.33]
[1773494237586,9.43742977,87.149,87.116,10.329]
[1773494249294,9.50857475,87.158,87.116,10.329]
[1773494249494,9.54368386,87.156,87.116,10.329]
[1773494249694,9.21544629,87.155,87.116,10.329]
[1773494249893,9.21544629,87.154,87.116,10.329]
[1773494250088,9.54368386,87.155,87.116,10.329]
[1773494250295,9.54370495,87.153,87.116,10.329]
[1773494253199,9.53140838,87.149,87.096,10.331]
[1773494253394,3.11105552,87.15,87.1,3.11105552]
[1773494253395,9.53140838,87.147,87.1,3.11105552]
[1773494254393,13.84776764,87.17,87.11,3.11105552]
[1773494254598,9.53051898,87.168,87.113,10.329]
[1773494254902,9.53051898,87.166,87.113,10.329]
[1773494255196,9.53051898,87.164,87.113,10.329]
[1773494255396,9.5325811,87.162,87.113,10.329]
[1773494255598,9.5325811,87.16,87.113,10.329]
[1773494255797,9.5325811,87.158,87.113,10.329]
[1773494256097,9.2137378,87.159,87.113,10.329]
[1773494256098,9.5325811,87.156,87.113,10.329]
[1773494256292,9.2137378,87.155,87.113,10.329]
[1773494256498,9.53694771,87.153,87.113,10.329]
[1773494262306,9.46923202,87.149,87.093,36.14]
[1773494262805,9.46923202,87.149,87.1,3.11105552]
[1773494263706,9.46923202,87.149,87.104,10.33]
[1773494270714,9.46786627,87.129,87.083,36.14]
[1773494271613,9.46786627,87.129,87.086,10.333]
[1773494280016,9.46786627,87.129,87.091,10.332]
[1773494280619,9.46786627,87.129,87.098,10.331]
[1773494282521,9.44531314,87.155,87.101,10.331]
[1773494282718,9.44531314,87.153,87.101,10.331]
[1773494282917,9.44531314,87.151,87.101,10.331]
[1773494283220,9.44531314,87.149,87.101,10.331]
[1773494283413,9.44528364,87.147,87.101,10.331]
[1773494284315,9.44528364,87.147,87.109,10.33]
[1773494284512,9.44528364,87.147,87.11,3.11094967]
[1773494285613,9.44528364,87.147,87.116,10.329]
[1773494288226,9.44528364,87.147,87.107,10.33]
[1773494289426,9.44528364,87.147,87.106,36.14]
[1773494290925,9.44041754,87.145,87.106,36.14]
[1773494296333,9.44041754,87.145,87.11,3.11094967]
[1773494297028,9.44041754,87.145,87.113,10.329]
[1773494302938,9.44041754,87.145,87.106,36.14]
[1773494317858,10.326,87.144,87.106,36.14]
[1773494318356,9.40716364,87.143,87.106,36.14]
[1773494326968,9.40716364,87.143,87.106,46.47]
[1773494327565,9.40716364,87.143,87.106,36.14]
[1773494333870,9.40716364,87.143,87.097,10.331]
[1773494335268,9.40716364,87.143,87.094,36.14]
[1773494335269,9.40716364,87.143,87.105,10.33]
[1773494338175,10.325,87.152,87.1,3.11094967]
[1773494338376,9.21876127,87.151,87.1,3.11094967]
[1773494338567,9.21876127,87.15,87.1,3.11094967]
[1773494338871,9.21876127,87.149,87.12,3.11094967]
[1773494339075,9.35731059,87.16,87.12,3.11094967]
[1773494339271,9.35521563,87.166,87.12,3.11094967]
[1773494339477,9.35521563,87.164,87.112,36.14]
[1773494339676,9.35521563,87.162,87.112,36.14]
[1773494339976,9.21349674,87.161,87.112,36.14]
[1773494340177,9.21349674,87.16,87.112,36.14]